fUSD/lending_fUSD_20260517
["ID","MTS","AMOUNT","RATE_DAILY","PERIOD"]
[422442502,1778949064000,-92.04046777,0.00028756,7]
[422442473,1778949064000,-451.73666601,0.00040332,120]
[422442468,1778949064000,-299.98309775,0.00040332,60]
[422442469,1778949064000,-1000.0,0.00040332,10]
[422442472,1778949064000,-451.73666601,0.00040332,120]
[422442471,1778949064000,-451.73666601,0.00040332,120]
[422442474,1778949064000,-451.73666601,0.00040332,120]
[422442476,1778949064000,-451.73666601,0.00040332,120]
[422442478,1778949064000,-451.73666601,0.00040332,120]
[422442477,1778949064000,-451.73666601,0.00040332,120]
[422442479,1778949064000,-451.73666601,0.00040332,120]
[422442475,1778949064000,-451.73666601,0.00040332,120]
[422442485,1778949064000,-3995.940959,0.00040332,120]
[422442480,1778949064000,-451.73666601,0.00040332,120]
[422442483,1778949064000,-451.73666601,0.00040332,120]
[422442481,1778949064000,-451.73666601,0.00040332,120]
[422442504,1778949064000,-298.13953223,0.00028756,7]
[422442508,1778949064000,-472.1,0.0002882,2]
[422442538,1778949064000,-160.0,0.00040332,2]
[422442523,1778949064000,-363.633174,0.00035,7]
[422442524,1778949064000,-420.0,0.00035119,2]
[422442532,1778949064000,-159.9104,0.00040332,2]
[422442527,1778949064000,-363.633174,0.0003997,30]
[422442535,1778949064000,-160.0,0.00040332,2]
[422442525,1778949064000,-300.0,0.00036317,2]
[422442534,1778949064000,-500.0,0.00040332,120]
[422442526,1778949064000,-300.0,0.00036317,2]
[422442529,1778949064000,-1228599.98930583,0.00040332,30]
[422442530,1778949064000,-500.0,0.00040332,120]
[422442537,1778949064000,-160.0,0.00040332,2]
[422442539,1778949064000,-160.0,0.00040332,2]
[422442536,1778949064000,-160.0,0.00040332,2]
[422442541,1778949064000,-160.0,0.00040332,2]
[422442509,1778949064000,-390.18,0.00028852,7]
[422442531,1778949064000,-2714.0,0.00040332,120]
[422442533,1778949064000,-168.44778477,0.00040332,120]
[422442528,1778949064000,-177.904356,0.0003997,30]
[422442516,1778949064000,-390.18,0.00028947,7]
[422442506,1778949064000,-472.1,0.00028788,30]
[422442499,1778949064000,-390.18,0.00028725,2]
[422442518,1778949064000,-363.633174,0.0003013,7]
[422442507,1778949064000,-390.18,0.0002882,2]
[422442517,1778949064000,-650.0,0.0003,2]
[422442511,1778949064000,-390.18,0.00028883,30]
[422442521,1778949064000,-150.0,0.00030137,30]
[422442513,1778949064000,-472.1,0.00028915,2]
[422442503,1778949064000,-2665.0,0.00027447,10]
[422442510,1778949064000,-472.1,0.00028852,7]
[422442514,1778949064000,-390.18,0.00028915,2]
[422442512,1778949064000,-472.1,0.00028883,30]
[422442519,1778949064000,-363.633174,0.0003013,7]
[422442520,1778949064000,-151.0,0.0003013,7]
[422442540,1778949064000,-160.0,0.00040332,2]
[422442515,1778949064000,-472.1,0.00028947,7]
[422442522,1778949064000,-177.904356,0.00035,7]
[422442573,1778949065000,-212.11276959,0.00040348,120]
[422442572,1778949065000,-216.98729327,0.00040348,120]
[422442576,1778949065000,-150.0,0.00040356,2]
[422442575,1778949065000,-25000.0,0.0004035,15]
[422442585,1778949065000,-25000.0,0.00040385,15]
[422442577,1778949065000,-25000.0,0.00040358,15]
[422442579,1778949065000,-25000.0,0.00040367,15]
[422442583,1778949065000,-363.633174,0.0003997,30]
[422442581,1778949065000,-472.1,0.00028979,30]
[422442584,1778949065000,-15274.4683676,0.00040376,15]
[422442580,1778949065000,-9725.5316324,0.00040376,15]
[422442582,1778949065000,-390.18,0.00028979,30]
[422442578,1778949065000,-162.67,0.0004036,120]
[422442599,1778949065000,-2312.0,0.00040684,11]
[422442588,1778949065000,-25000.0,0.00040411,15]
[422442590,1778949065000,-25000.0,0.0004042,15]
[422442592,1778949065000,-350.0,0.0004044,7]
[422442589,1778949065000,-25000.0,0.00040411,15]
[422442587,1778949065000,-25000.0,0.00040402,15]
[422442591,1778949065000,-25000.0,0.0004042,15]
[422442594,1778949065000,-555.0,0.00040486,16]
[422442593,1778949065000,-166.91,0.00040471,30]
[422442596,1778949065000,-1865.36488657,0.00040517,30]
[422442598,1778949065000,-1585.0,0.00040684,11]
[422442595,1778949065000,-152.0,0.000405,120]
[422442604,1778949065000,-1058.0,0.000408,30]
[422442574,1778949065000,-473.48673608,0.00040348,120]
[422442586,1778949065000,-25000.0,0.00040394,15]
[422442571,1778949065000,-169.6407658,0.00040348,120]
[422442563,1778949065000,-2862.0,0.00040332,30]
[422442570,1778949065000,-1000.0,0.00040348,120]
[422442549,1778949065000,-160.0,0.00040332,2]
[422442548,1778949065000,-160.0,0.00040332,2]
[422442547,1778949065000,-160.0,0.00040332,2]
[422442543,1778949065000,-20000.0,0.00040332,2]
[422442546,1778949065000,-160.0,0.00040332,2]
[422442544,1778949065000,-160.0,0.00040332,2]
[422442542,1778949065000,-264.8,0.00040332,2]
[422442545,1778949065000,-160.0,0.00040332,2]
[422442550,1778949065000,-160.0,0.00040332,2]
[422442561,1778949065000,-648.05655036,0.00040332,2]
[422442562,1778949065000,-18017.56939679,0.00040332,120]
[422442551,1778949065000,-160.0,0.00040332,2]
[422442568,1778949065000,-301.00000001,0.00040348,120]
[422442553,1778949065000,-160.0,0.00040332,2]
[422442552,1778949065000,-160.0,0.00040332,2]
[422442555,1778949065000,-264.800001,0.00040332,2]
[422442558,1778949065000,-508.17077045,0.00040332,2]
[422442557,1778949065000,-401.24500376,0.00040332,2]
[422442559,1778949065000,-150.0,0.00040332,2]
[422442556,1778949065000,-1002.08,0.00040332,2]
[422442560,1778949065000,-299.98309775,0.00040332,60]
[422442564,1778949065000,-500.0,0.00040332,120]
[422442565,1778949065000,-300.0,0.00040332,2]
[422442567,1778949065000,-25000.0,0.00040341,15]
[422442566,1778949065000,-3174.36,0.00040332,30]
[422442569,1778949065000,-828.81142641,0.00040348,120]
[422442554,1778949065000,-160.0,0.00040332,2]
[422442603,1778949065000,-6313.95,0.00040717,2]
[422442648,1778949065000,-300.0,0.00041096,30]
[422442597,1778949065000,-17603.46237904,0.00040518,15]
[422442641,1778949065000,-150.0,0.00041066,2]
[422442635,1778949065000,-25347.5912034,0.00041,2]
[422442640,1778949065000,-870.3682802,0.00041049,2]
[422442633,1778949065000,-150.0,0.00041,2]
[422442631,1778949065000,-500.0,0.00041,120]
[422442643,1778949065000,-1000.0,0.00041095,30]
[422442636,1778949065000,-500.0,0.00041019,120]
[422442642,1778949065000,-289.0,0.00041093,11]
[422442632,1778949065000,-152.0,0.00041,120]
[422442638,1778949065000,-256.29322813,0.00041027,2]
[422442644,1778949065000,-1000.0,0.00041095,30]
[422442647,1778949065000,-300.0,0.00041096,30]
[422442634,1778949065000,-252.10964833,0.00041,2]
[422442646,1778949065000,-624.79167954,0.00041095,30]
[422442652,1778949065000,-277.0,0.00041096,30]
[422442645,1778949065000,-1000.0,0.00041095,30]
[422442654,1778949065000,-1245.291592,0.00041096,120]
[422442651,1778949065000,-400.0,0.00041096,30]
[422442601,1778949065000,-622.44,0.000407,120]
[422442650,1778949065000,-400.0,0.00041096,30]
[422442655,1778949065000,-1245.291592,0.00041096,120]
[422442656,1778949065000,-1245.291592,0.00041096,120]
[422442658,1778949065000,-1245.291592,0.00041096,120]
[422442659,1778949065000,-1245.291592,0.00041096,120]
[422442657,1778949065000,-1245.291592,0.00041096,120]
[422442660,1778949065000,-1245.291592,0.00041096,120]
[422442653,1778949065000,-1245.291592,0.00041096,120]
[422442639,1778949065000,-1450.4,0.00041041,120]
[422442649,1778949065000,-182.0,0.00041096,30]
[422442626,1778949065000,-150.0,0.00041,2]
[422442637,1778949065000,-555.0,0.0004102,17]
[422442602,1778949065000,-1000.0,0.0004071,30]
[422442600,1778949065000,-350.0,0.00040685,5]
[422442605,1778949065000,-2313.11091335,0.0004086,2]
[422442611,1778949065000,-157.78723388,0.0004089,3]
[422442608,1778949065000,-1495.0,0.00040875,2]
[422442609,1778949065000,-527.0,0.00040875,2]
[422442614,1778949065000,-186.2,0.000409,120]
[422442612,1778949065000,-2313.11091335,0.00040896,2]
[422442617,1778949065000,-342.0,0.00040945,2]
[422442610,1778949065000,-459.0,0.00040875,2]
[422442616,1778949065000,-328.0,0.00040905,2]
[422442607,1778949065000,-1709.0,0.00040875,2]
[422442606,1778949065000,-208.97,0.00040861,120]
[422442613,1778949065000,-299.98309775,0.00040897,60]
[422442624,1778949065000,-150.0,0.00041,2]
[422442615,1778949065000,-1068.0,0.00040904,2]
[422442623,1778949065000,-150.0,0.00041,2]
[422442628,1778949065000,-244.7,0.00041,2]
[422442625,1778949065000,-150.0,0.00041,2]
[422442622,1778949065000,-150.0,0.00041,2]
[422442627,1778949065000,-150.0,0.00041,2]
[422442620,1778949065000,-9933.24702696,0.00041,120]
[422442618,1778949065000,-342.0,0.00040986,2]
[422442630,1778949065000,-991.34734754,0.00041,2]
[422442619,1778949065000,-300.0,0.00041,2]
[422442629,1778949065000,-158.0,0.00041,120]
[422442621,1778949065000,-150.0,0.00041,2]
[422442681,1778949066000,-1000.0,0.00041096,60]
[422442686,1778949066000,-151.0,0.00041096,120]
[422442692,1778949066000,-282.443783,0.00041096,120]
[422442685,1778949066000,-151.0,0.00041096,120]
[422442688,1778949066000,-151.0,0.00041096,120]
[422442687,1778949066000,-178.745491,0.00041096,120]
[422442690,1778949066000,-151.0,0.00041096,120]
[422442689,1778949066000,-301.877691,0.00041096,120]
[422442691,1778949066000,-151.0,0.00041096,120]
[422442697,1778949066000,-2564.13975557,0.00041096,120]
[422442693,1778949066000,-167.11700325,0.00041096,2]
[422442695,1778949066000,-150.0,0.00041096,60]
[422442696,1778949066000,-158.2,0.00041096,60]
[422442698,1778949066000,-2312.0,0.00041112,11]
[422442699,1778949066000,-870.5591453,0.0004115,120]
[422442701,1778949066000,-750.0,0.0004115,120]
[422442700,1778949066000,-269.66979463,0.0004115,120]
[422442683,1778949066000,-1000.0,0.00041096,60]
[422442694,1778949066000,-5527.755,0.00041096,120]
[422442684,1778949066000,-307.0,0.00041096,60]
[422442664,1778949066000,-1245.291592,0.00041096,120]
[422442679,1778949066000,-1000.0,0.00041096,60]
[422442703,1778949066000,-166.0,0.0004119,120]
[422442668,1778949066000,-1245.291592,0.00041096,120]
[422442662,1778949066000,-1245.291592,0.00041096,120]
[422442663,1778949066000,-1245.291592,0.00041096,120]
[422442661,1778949066000,-1245.291592,0.00041096,120]
[422442666,1778949066000,-1245.291592,0.00041096,120]
[422442665,1778949066000,-1245.291592,0.00041096,120]
[422442670,1778949066000,-1245.291592,0.00041096,120]
[422442682,1778949066000,-1000.0,0.00041096,60]
[422442678,1778949066000,-1000.0,0.00041096,60]
[422442669,1778949066000,-1245.291592,0.00041096,120]
[422442677,1778949066000,-1000.0,0.00041096,60]
[422442675,1778949066000,-1000.0,0.00041096,60]
[422442680,1778949066000,-1000.0,0.00041096,60]
[422442673,1778949066000,-95583.61,0.00041096,2]
[422442674,1778949066000,-1000.0,0.00041096,60]
[422442671,1778949066000,-1245.291592,0.00041096,120]
[422442672,1778949066000,-1245.291589,0.00041096,120]
[422442676,1778949066000,-1000.0,0.00041096,60]
[422442702,1778949066000,-157.78723388,0.00041164,3]
[422442667,1778949066000,-1245.291592,0.00041096,120]
[422442715,1778949066000,-313.0,0.00041331,120]
[422442735,1778949066000,-831.36,0.00041644,30]
[422442728,1778949066000,-190.2307575,0.00041523,2]
[422442736,1778949066000,-1222.96,0.00041644,120]
[422442729,1778949066000,-429.41362669,0.0004153,31]
[422442737,1778949066000,-664.5,0.00041644,30]
[422442739,1778949066000,-3380.0,0.00041671,120]
[422442734,1778949066000,-350.0,0.000416,9]
[422442731,1778949066000,-150.0,0.00041558,120]
[422442733,1778949066000,-350.0,0.00041583,6]
[422442730,1778949066000,-555.0,0.00041554,17]
[422442738,1778949066000,-709.31,0.00041644,120]
[422442741,1778949066000,-157.78723388,0.00041712,3]
[422442740,1778949066000,-1450.4,0.00041694,120]
[422442742,1778949066000,-200.0,0.00041723,120]
[422442746,1778949066000,-68491.97856437,0.000419,120]
[422442745,1778949066000,-604.0,0.000419,3]
[422442743,1778949066000,-13903.2868087,0.00041747,2]
[422442705,1778949066000,-736.0,0.0004119,120]
[422442732,1778949066000,-299.98309775,0.00041582,60]
[422442722,1778949066000,-6313.97,0.00041402,2]
[422442744,1778949066000,-152.0,0.000418,120]
[422442724,1778949066000,-157.78723388,0.00041438,3]
[422442725,1778949066000,-219.90175864,0.00041453,120]
[422442704,1778949066000,-217.0,0.0004119,120]
[422442707,1778949066000,-295.0,0.0004119,120]
[422442706,1778949066000,-939.0,0.0004119,120]
[422442713,1778949066000,-2312.0,0.00041324,11]
[422442708,1778949066000,-309.0,0.0004119,120]
[422442711,1778949066000,-289.0,0.00041271,120]
[422442710,1778949066000,-299.98309775,0.00041239,60]
[422442714,1778949066000,-394.0,0.00041331,120]
[422442709,1778949066000,-1250.0,0.0004119,120]
[422442716,1778949066000,-179.0,0.00041331,120]
[422442727,1778949066000,-2500.0,0.000415,120]
[422442720,1778949066000,-152.0,0.000414,120]
[422442719,1778949066000,-500.0,0.00041332,120]
[422442718,1778949066000,-156.0,0.00041331,120]
[422442717,1778949066000,-576.0,0.00041331,120]
[422442723,1778949066000,-1193.0,0.00041413,11]
[422442726,1778949066000,-668.65185757,0.00041456,2]
[422442712,1778949066000,-169.999999,0.000413,3]
[422442721,1778949066000,-155.0,0.000414,120]
[422442769,1778949067000,-151.0,0.0003013,7]
[422442761,1778949067000,-390.18,0.00029137,7]
[422442762,1778949067000,-472.1,0.00029137,7]
[422442772,1778949067000,-151.0,0.00035,7]
[422442770,1778949067000,-700.0,0.00032,2]
[422442766,1778949067000,-472.1,0.00029201,2]
[422442773,1778949067000,-800.0,0.00036,2]
[422442771,1778949067000,-750.0,0.00034,2]
[422442774,1778949067000,-300.0,0.00036317,2]
[422442778,1778949067000,-277.01511986,0.000419,120]
[422442775,1778949067000,-151.0,0.0003997,30]
[422442763,1778949067000,-390.18,0.00029169,30]
[422442776,1778949067000,-4626.33029621,0.000419,120]
[422442767,1778949067000,-151.0,0.0003013,7]
[422442768,1778949067000,-151.0,0.0003013,7]
[422442752,1778949067000,-2781.0,0.00027447,10]
[422442765,1778949067000,-390.18,0.00029201,2]
[422442780,1778949067000,-472.25,0.00029232,7]
[422442749,1778949067000,-265.3,0.0002901,2]
[422442748,1778949067000,-292.65,0.00016438,2]
[422442747,1778949067000,-438.98,0.00016438,2]
[422442751,1778949067000,-151.0,0.00025,2]
[422442750,1778949067000,-331.65,0.00012339,2]
[422442764,1778949067000,-472.1,0.00029169,30]
[422442756,1778949067000,-472.1,0.00029042,7]
[422442758,1778949067000,-472.1,0.00029074,30]
[422442753,1778949067000,-124.88,0.0002901,2]
[422442759,1778949067000,-390.18,0.00029105,2]
[422442755,1778949067000,-390.18,0.00029042,7]
[422442760,1778949067000,-472.1,0.00029105,2]
[422442754,1778949067000,-472.1,0.0002901,2]
[422442757,1778949067000,-390.18,0.00029074,30]
[422442779,1778949067000,-926.0,0.0002411,2]
[422442777,1778949067000,-330.0,0.000419,120]
[422442783,1778949067000,-1432.59464498,0.000419,120]
[422442799,1778949067000,-158.0,0.00042,2]
[422442801,1778949067000,-282.36355332,0.00042,120]
[422442804,1778949067000,-153.215055,0.00025,2]
[422442805,1778949067000,-926.0,0.0002711,2]
[422442806,1778949067000,-1496.43,0.00027397,10]
[422442807,1778949067000,-926.0,0.0003011,2]
[422442800,1778949067000,-223749.80849896,0.00042,120]
[422442803,1778949067000,-500.0,0.00017257,2]
[422442809,1778949067000,-926.0,0.0003611,2]
[422442812,1778949067000,-926.0,0.0003911,2]
[422442810,1778949067000,-484.23291958,0.00036317,2]
[422442813,1778949067000,-151.0,0.0003997,30]
[422442814,1778949067000,-900.0,0.0004,2]
[422442811,1778949067000,-850.0,0.00038,2]
[422442808,1778949067000,-926.0,0.0003311,2]
[422442796,1778949067000,-2650.0,0.00042,120]
[422442802,1778949067000,-447.86961296,0.00042,120]
[422442798,1778949067000,-2500.0,0.00042,120]
[422442781,1778949067000,-151.0,0.00035,7]
[422442784,1778949067000,-390.29,0.00029232,7]
[422442786,1778949067000,-186.2,0.000419,120]
[422442797,1778949067000,-158.0,0.00042,120]
[422442787,1778949067000,-299.98309775,0.00041924,60]
[422442785,1778949067000,-408.02728156,0.000419,120]
[422442789,1778949067000,-500.61920959,0.00041999,60]
[422442815,1778949067000,-9550.25686492,0.00042,120]
[422442793,1778949067000,-616.86,0.00042,120]
[422442795,1778949067000,-500.0,0.00042,2]
[422442794,1778949067000,-499.999999,0.00042,7]
[422442792,1778949067000,-794.0,0.00042,120]
[422442782,1778949067000,-300.0,0.00036317,2]
[422442791,1778949067000,-900.0,0.00042,120]
[422442788,1778949067000,-157.78723388,0.00041986,3]
[422442790,1778949067000,-1798.80895522,0.00041999,30]
[422442819,1778949068000,-197413.50634351,0.00042,120]
[422442816,1778949068000,-152.0,0.00011318,2]
[422442817,1778949068000,-541.0,0.00027117,10]
[422442818,1778949068000,-309.92123961,0.00036317,2]
[422442820,1778949070000,-252.42,0.00011472,2]
[422442821,1778949070000,-104.70056506,0.00011626,2]
[422442822,1778949181000,500.0,0.00030137,120]
[422442823,1778949190000,500.0,0.00010019,2]
[422442826,1778949269000,2000.0,0.00028637,120]
[422442827,1778949650000,152.0,0.00018977,120]
[422442828,1778949781000,607.12211673,0.00030137,120]
[422442829,1778949817000,176.12,0.00030082,120]
[422442830,1778949850000,183.74,5.985e-05,2]
[422442831,1778949941000,-160.93,0.00011257,2]
[422442835,1778950151000,-151.58,0.00010856,2]
[422442836,1778950153000,-174.67,0.00010856,2]
[422442837,1778950153000,-25.33,0.00010883,2]
[422442840,1778950154000,-151.58,0.00010883,2]
[422442839,1778950154000,-3642.56583264,0.00010883,2]
[422442838,1778950154000,-126.67,0.00010883,2]
[422442842,1778950225000,-160.93,0.000105,2]
[422442872,1778950232000,-954.19837459,0.00011183,2]
[422442873,1778950232000,-113.031006,0.00011257,2]
[422442874,1778950232000,-300.0,0.00011266,2]
[422442871,1778950232000,-2392.63152663,0.00011183,2]
[422442870,1778950232000,-653.17009878,0.00011183,2]
[422442880,1778950232000,-2247.63760254,0.00011281,2]
[422442876,1778950232000,-2130.22,0.00011281,2]
[422442875,1778950232000,-273.45549854,0.00011266,2]
[422442877,1778950232000,-1368.29,0.00011281,2]
[422442869,1778950232000,-610.87861929,0.00011158,2]
[422442878,1778950232000,-999.99,0.00011281,2]
[422442881,1778950232000,-5737.73727659,0.00011281,2]
[422442879,1778950232000,-2014.61512087,0.00011281,2]
[422442867,1778950232000,-500.0,0.00011158,2]
[422442864,1778950232000,-230.0,0.00010998,2]
[422442866,1778950232000,-181.32555238,0.00011158,2]
[422442862,1778950232000,-150.0,0.00010959,2]
[422442865,1778950232000,-300.0,0.0001107,2]
[422442868,1778950232000,-500.0,0.00011158,2]
[422442861,1778950232000,-4000.0,0.00010917,2]
[422442860,1778950232000,-1200.0,0.00010916,2]
[422442858,1778950232000,-181.32555238,0.00010883,2]
[422442857,1778950232000,-331.47781579,0.00010883,2]
[422442855,1778950232000,-778.71,0.00010811,2]
[422442856,1778950232000,-200.0,0.00010843,2]
[422442854,1778950232000,-4000.0,0.00010651,2]
[422442853,1778950232000,-841.7228,0.000105,2]
[422442852,1778950232000,-849.7672,0.000105,2]
[422442883,1778950232000,-3318.26,0.00011281,2]
[422442863,1778950232000,-500.0,0.00010976,2]
[422442893,1778950232000,-30037.65,0.00011281,2]
[422442886,1778950232000,-9999.99,0.00011281,2]
[422442897,1778950232000,-152.0,0.00011314,2]
[422442895,1778950232000,-166.66,0.00011307,2]
[422442928,1778950232000,-549.89465407,0.00011967,2]
[422442927,1778950232000,-42475.76845418,0.00011967,2]
[422442929,1778950232000,-1873.69118943,0.00011967,2]
[422442926,1778950232000,-8140.5046181,0.00011967,2]
[422442925,1778950232000,-8818.16945006,0.00011967,2]
[422442924,1778950232000,-150.0,0.00011966,2]
[422442923,1778950232000,-153.7,0.00011952,2]
[422442921,1778950232000,-4168.5776,0.00011867,2]
[422442918,1778950232000,-250.0,0.00011716,2]
[422442916,1778950232000,-215.03962261,0.00011638,2]
[422442919,1778950232000,-4000.0,0.00011716,2]
[422442920,1778950232000,-166.66,0.00011774,2]
[422442917,1778950232000,-160.0,0.00011705,2]
[422442913,1778950232000,-188.23647324,0.00011568,2]
[422442922,1778950232000,-99095.1757,0.00011867,2]
[422442911,1778950232000,-156.94940494,0.00011568,2]
[422442915,1778950232000,-23857.10773494,0.00011626,2]
[422442899,1778950232000,-152.0,0.00011314,2]
[422442884,1778950232000,-6057.03,0.00011281,2]
[422442930,1778950232000,-8053.07254739,0.00011967,2]
[422442887,1778950232000,-150.99,0.00011281,2]
[422442885,1778950232000,-24999.99,0.00011281,2]
[422442891,1778950232000,-9999.99,0.00011281,2]
[422442901,1778950232000,-2000.0,0.00011403,2]
[422442905,1778950232000,-298.36,0.00011463,2]
[422442907,1778950232000,-500.0,0.00011526,2]
[422442903,1778950232000,-4000.0,0.0001145,2]
[422442909,1778950232000,-156.94940495,0.00011568,2]
[422442889,1778950232000,-299.99,0.00011281,2]
[422442882,1778950232000,-9999.99,0.00011281,2]
[422442954,1778950238000,-500.0,0.00012603,2]
[422442961,1778950238000,-29999.99,0.00012893,2]
[422442964,1778950238000,-187.04,0.00013136,2]
[422442957,1778950238000,-153.7,0.00012806,2]
[422442958,1778950238000,-2000.0,0.00012828,2]
[422442959,1778950238000,-500.0,0.00012877,2]
[422442971,1778950238000,-166.66,0.00013699,2]
[422442963,1778950238000,-255.0,0.00013043,2]
[422442965,1778950238000,-500.0,0.00013151,2]
[422442968,1778950238000,-500.0,0.00013425,2]
[422442976,1778950238000,-132130.24853779,0.00013957,2]
[422442969,1778950238000,-153.7,0.0001366,2]
[422442956,1778950238000,-1683.43263532,0.00012793,2]
[422442962,1778950238000,-9999.99,0.00012893,2]
[422442955,1778950238000,-166.66,0.00012707,2]
[422442937,1778950238000,-2857.01087054,0.00011967,2]
[422442950,1778950238000,-166.66,0.0001224,2]
[422442938,1778950238000,-739.6003943,0.00011967,2]
[422442970,1778950238000,-200.0,0.00013699,2]
[422442939,1778950238000,-75473.31782193,0.00011967,2]
[422442941,1778950238000,-300.0,0.00011971,2]
[422442940,1778950238000,-250.0,0.00011971,2]
[422442943,1778950238000,-250.0,0.00011971,2]
[422442951,1778950238000,-176.12,0.00012329,2]
[422442952,1778950238000,-500.0,0.00012329,2]
[422442946,1778950238000,-2500.0,0.00011987,2]
[422442949,1778950238000,-500.0,0.00012055,2]
[422442944,1778950238000,-5000.0,0.00011971,2]
[422442947,1778950238000,-1680.0,0.00012008,2]
[422442948,1778950238000,-4138.98,0.00012055,2]
[422442942,1778950238000,-500.0,0.00011971,2]
[422442945,1778950238000,-4523.3975716,0.00011987,2]
[422442953,1778950238000,-175.05,0.00012446,2]
[422442966,1778950238000,-166.66,0.00013173,2]
[422442960,1778950238000,-29999.99,0.00012893,2]
[422442972,1778950238000,-166.66,0.00013836,2]
[422442993,1778950238000,-151.0,0.00016157,2]
[422442992,1778950238000,-3448.0,0.00015982,2]
[422442995,1778950238000,-151.0,0.00016157,2]
[422442994,1778950238000,-151.0,0.00016157,2]
[422442996,1778950238000,-151.0,0.00016157,2]
[422442998,1778950238000,-151.0,0.00016157,2]
[422442997,1778950238000,-151.0,0.00016157,2]
[422443000,1778950238000,-151.0,0.00016157,2]
[422442999,1778950238000,-151.0,0.00016157,2]
[422443004,1778950238000,-151.0,0.00016157,2]
[422443002,1778950238000,-151.0,0.00016157,2]
[422443007,1778950238000,-151.0,0.00016157,2]
[422443005,1778950238000,-151.0,0.00016157,2]
[422443006,1778950238000,-151.0,0.00016157,2]
[422442967,1778950238000,-2351.0,0.00013208,2]
[422443001,1778950238000,-151.0,0.00016157,2]
[422442991,1778950238000,-1683.43263523,0.00015712,2]
[422443003,1778950238000,-151.0,0.00016157,2]
[422442986,1778950238000,-3292.0,0.00014529,2]
[422442973,1778950238000,-6799.762,0.00013857,2]
[422442990,1778950238000,-2000.0,0.00015679,2]
[422442974,1778950238000,-173.08176462,0.00013873,2]
[422442975,1778950238000,-197493.07133078,0.00013957,2]
[422442988,1778950238000,-153.7,0.00015367,2]
[422442989,1778950238000,-150.0,0.00015496,2]
[422442983,1778950238000,-3993.59,0.00014376,2]
[422442978,1778950238000,-166.66,0.0001411,2]
[422442979,1778950238000,-433.0,0.00014216,2]
[422442984,1778950238000,-166.66,0.00014384,2]
[422442977,1778950238000,-166.66,0.00013973,2]
[422442982,1778950238000,-2000.0,0.00014253,2]
[422442981,1778950238000,-1683.43263523,0.00014252,2]
[422442987,1778950238000,-172.81799297,0.000149,2]
[422442980,1778950238000,-166.66,0.00014247,2]
[422442985,1778950238000,-153.7,0.00014514,2]
[422443050,1778950239000,-175.84951723,0.0002,2]
[422443039,1778950239000,-404.0,0.0002,2]
[422443041,1778950239000,-162.0,0.0002,2]
[422443042,1778950239000,-169.0,0.0002,2]
[422443035,1778950239000,-366.01624008,0.000192,2]
[422443033,1778950239000,-165.19732035,0.000188,2]
[422443034,1778950239000,-366.01624008,0.00019,2]
[422443043,1778950239000,-687.0,0.0002,2]
[422443036,1778950239000,-5000.0,0.000199,2]
[422443040,1778950239000,-516.0,0.0002,2]
[422443044,1778950239000,-216.0,0.0002,2]
[422443054,1778950239000,-3993.59,0.00020126,2]
[422443046,1778950239000,-175.84951721,0.0002,2]
[422443047,1778950239000,-175.84951721,0.0002,2]
[422443048,1778950239000,-175.84951721,0.0002,2]